Cogmind - Beta 16.1 @@@ ROGUE MODE // 2026.02.20 @ 19:01:47 Player: DS-RVS Result: Destroyed by D-53 Grenadier with Mini Grenade Launcher Performance ------------- Evolutions (0) 0 Regions Visited (2) 400 Robots Destroyed (20) 100 Value Destroyed (424) 424 Prototype IDs (5) 100 Alien Tech Used (0) 0 Bonus (0) 0 TOTAL SCORE: 1024 Bonus ------- None Cogmind --------- Core Integrity 0/250 Matter 300/300 Energy 100/100 System Corruption 1% Temperature Cool (0) Movement Core (100) Ox1 Location -10/Mines Parts ------- > --- POWER (1) -------- (None) > --- PROPULSION (2) --- (None) > --- UTILITY (2) ------ Improved Heat Sink Small Storage Unit > --- WEAPON (2) ------- (None) > --- INVENTORY (8) ---- Light Ion Engine High-capacity Storage Unit High-capacity Storage Unit Improved Terrain Scanner Hacking Suite Medium Laser Medium Laser Medium Laser Peak State ------------ > --- POWER ------------ Light Nuclear Core > --- PROPULSION ------- Light Treads Light Treads > --- UTILITY ---------- Improved Heat Sink Small Storage Unit > --- WEAPON ----------- Medium Laser Small Laser > --- INVENTORY -------- Light Ion Engine Light Treads Aluminum Leg Wheel High-capacity Storage Unit High-capacity Storage Unit Improved Terrain Scanner Small Laser [Rating: 12] Favorites ----------- Power Light Ion Engine Engine Light Ion Engine Power Core Light Nuclear Core Propulsion Light Treads Treads Light Treads Utility Small Storage Unit Device Improved Heat Sink Storage Small Storage Unit Weapon Medium Laser Energy Gun Medium Laser Ballistic Gun Light Assault Rifle Build | -11 -10 -10 ------- Run | Yrd Mat Min Slots Evolved . | . . . Power . | . . . Propulsion . | . . . Utility . | . . . Weapon . | . . . Parts Attached 16 | 7 8 1 Power 3 | 1 1 1 Engine 2 | 1 . 1 Core 1 | . 1 . Reactor . | . . . Propulsion 4 | 2 2 . Treads 4 | 2 2 . Leg . | . . . Wheel . | . . . Hover . | . . . Flight . | . . . Utility 3 | 2 1 . Device 2 | 1 1 . Storage 1 | 1 . . Processor . | . . . Hackware . | . . . Protection . | . . . Artifact . | . . . Weapon 6 | 2 4 . Energy Gun 4 | . 4 . Energy Cannon . | . . . Ballistic Gun 2 | 2 . . Ballistic Cannon . | . . . Launcher . | . . . Special Weapon . | . . . Impact Weapon . | . . . Slashing Weapon . | . . . Piercing Weapon . | . . . Special Melee Weapon . | . . . Unidentified Prototypes . | . . . Parts Lost 5 | . 1 4 Power 1 | . . 1 Propulsion 3 | . . 3 Utility 1 | . 1 . Weapon . | . . . Highest Loss Streak 3 | . 1 3 To Critical Strikes . | . . . Average Backups 7 | 5 7 7 Power . | . 1 . Propulsion 2 | 3 1 . Utility 3 | . 3 4 Weapon 1 | . 1 2 Tool/Special . | . . . Unused Backups 12 | . 5 7 Power 1 | . . 1 Propulsion 4 | . 4 . Utility 4 | . . 4 Weapon 3 | . 1 2 Tool/Special . | . . . Average Slot Usage (%) 98 | . 99 91 Engine 5 | . 5 9 Core 8 | . 8 2 Treads 27 | . 28 23 Device 13 | . 13 14 Storage 14 | . 14 14 Energy Gun 21 | . 21 25 Ballistic Gun 6 | . 6 . Peak Build Rating 12 | 7 12 12 Average Rating 10 | 5 10 9 On Entrance 6 | . 7 12 Avg Prop Armor Cover (%) . | . . . Naked Turns . | . . . Heaviest Build 15 | 11 15 13 Greatest Support 40 | 40 40 40 Greatest Overweight (x) 2 | . . 2 Average Overweight (x) . | . . . Largest Inventory Capacity 8 | 8 8 8 Average Capacity 7 | 7 8 8 Most Carried 8 | 7 8 8 Average Carried 7 | 5 7 7 Final Capacity 8 | 8 8 8 Final Carried 8 | 7 8 8 Class Distribution -------------------- 50% | Mutant 49% | Scavenger-Mutant Dominant Class ---------------- Scavenger-Mutant | -10/Materials Mutant | -10/Mines Resources | -11 -10 -10 ----------- Run | Yrd Mat Min Matter Collected 474 | 276 177 21 Remotely . | . . . Salvage Created 686 | 103 542 41 Parts 43 | 5 32 6 Haulers Intercepted 2 | . 2 . Recyclers Shooed . | . . . Parts Field Recycled . | . . . Retrieved Matter . | . . . Parts Self-Destructed . | . . . Prevented . | . . . Parts Restored . | . . . Kills | -11 -10 -10 ------- Run | Yrd Mat Min Combat Hostiles Destroyed 12 | . 9 3 Guns 11 | . 8 3 Classes Destroyed 7 | 2 4 1 Tunneler 2 | 2 . . Hauler 2 | . 2 . Recycler 2 | 1 1 . Operator 1 | . 1 . Watcher 1 | . 1 . Swarmer 3 | . . 3 Grunt 9 | . 9 . Best Kill Streak 3 | 1 3 3 Combat Bots Only 3 | . 2 3 Max Kills in Single Turn 1 | 1 1 1 Gunslinging . | . . . Exploded . | . . . Melee . | . . . Uniques/NPCs Destroyed . | . . . Combat | -11 -10 -10 -------- Run | Yrd Mat Min Hostile Shots Fired 83 | . 63 20 Missed 16 | . 13 3 Hits 67 | . 50 17 Projectile 67 | . 50 17 AOE 11 | . . 11 Critical Strikes 1 | . 1 . Damage Taken 1095 | . 660 435 Core 250 | . 90 160 Absorbed by Shields . | . . . Core Remaining (%) 100 | 100 . . Volleys Fired 76 | 17 55 4 Largest 2 | 2 2 2 Hottest 100 | 40 100 100 Shots Fired 152 | 34 110 8 Gun 152 | 34 110 8 Cannon . | . . . Launcher . | . . . Special . | . . . Kinetic 100 | 34 66 . Thermal 52 | . 44 8 Explosive . | . . . Electromagnetic . | . . . Robot Hit Streak 18 | 8 18 2 Robot Miss Streak 3 | 3 3 1 Penetration Max . | . . . Secondary Targets 2 | . 1 1 Max Gunslinging Chain 1 | . 1 1 Shots Hit Robots 107 | 24 79 4 Core Hits 43 | 6 34 3 Critical Kills . | . . . Critical Parts Destroyed 1 | 1 . . Critical Strikes 2 | 1 1 . Burn 1 | . 1 . Destroy 1 | 1 . . Melee Attacks . | . . . Impact . | . . . Slashing . | . . . Piercing . | . . . Sneak Attacks . | . . . Combat Hostiles . | . . . Follow-up Attacks . | . . . Damage Inflicted 1027 | 196 782 49 Guns 1027 | 196 782 49 Cannons . | . . . Explosions . | . . . Melee . | . . . Ramming . | . . . Kinetic 527 | 196 331 . Thermal 500 | . 451 49 Explosive . | . . . Electromagnetic . | . . . Impact . | . . . Slashing . | . . . Piercing . | . . . Highest Corruption 1 | . 1 1 Average Corruption 1 | . 1 1 Corruption Purged . | . . . Corruption Blocked . | . . . Effects 7 | . 7 . Message Errors 4 | . 4 . Matter Fused 2 | . 2 . Data Loss (minor) 1 | . 1 . Overload Shots . | . . . Overflow Damage . | . . . Projectiles . | . . . Explosions . | . . . Melee . | . . . Knockbacks . | . . . Impact . | . . . Kinetic . | . . . Secondary . | . . . Self-Inflicted Damage . | . . . Shots . | . . . Rammed . | . . . Targets Rammed . | . . . Kicked . | . . . Crushed . | . . . Highest Temperature 60 | . 60 12 Average Temperature 18 | . 20 6 Received Heat Transfer 360 | . 360 . Siege Activations . | . . . Martial Activations . | . . . Shielding Activations . | . . . Robots Disrupted . | . . . Combat Hostiles . | . . . Robots Corrupted . | . . . Combat Hostiles . | . . . Parts Fried . | . . . Impact Corruptions . | . . . Robots Melted 1 | . 1 . Combat Hostiles 1 | . 1 . Parts Melted 5 | . 4 1 Heat Transferred 1483 | . 1335 148 Parts Sabotaged . | . . . Parts Stolen . | . . . Parts Stripped . | . . . Power Chain Reactions . | . . . Alert | -11 -10 -10 ------- Run | Yrd Mat Min Maximum Alert Level . | . . . Low Security (%) 100 | 100 100 100 Level 1 . | . . . Level 2 . | . . . Level 3 . | . . . Level 4 . | . . . Level 5 . | . . . High Security . | . . . Max Security . | . . . Peak Influence 69 | 5 69 60 Initial . | . . . Average 10 | . 11 36 Influence Increases 396 | 15 311 70 Destroy 0b10 Robot/C 240 | . 180 60 Destroy 0b10 Robot/NC 40 | 15 25 . Destroy Leader 66 | . 56 10 Successful Hack 20 | . 20 . Select Force Hacks 30 | . 30 . Influence Decreases 396 | 15 311 70 Time Decay 352 | 15 297 40 Lost Part 30 | . . 30 Purge Threat 14 | . 14 . Squads Dispatched 3 | . 3 . Investigation 1 | . 1 . Extermination . | . . . Reinforcement 2 | . 2 . Assault . | . . . Garrison . | . . . Intercept . | . . . Searches Triggered . | . . . Construction Impeded . | . . . Haulers Reinforced . | . . . Active Scanning Responses . | . . . Cargo Convoy Interrupts . | . . . Stealth | -11 -10 -10 --------- Run | Yrd Mat Min Distress Signals 1 | . 1 . Communications Jammed . | . . . Distress Signals . | . . . Times Spotted 27 | . 22 5 Peak Tracking Total 7 | . 4 7 Tactical Retreats . | . . . Traps | -11 -10 -10 ------- Run | Yrd Mat Min Traps Triggered 2 | . 2 . Indirectly . | . . . Trap Hack Attempts . | . . . Triggered . | . . . Disarmed . | . . . Reprogrammed . | . . . Reused . | . . . Traps Extracted . | . . . Installed . | . . . Triggered . | . . . Machines | -11 -10 -10 ---------- Run | Yrd Mat Min Machines Disabled . | . . . Max in Single Turn . | . . . Machines Repaired . | . . . Machines Dismantled . | . . . Machines Sabotaged . | . . . Overloaded Fab Kills . | . . . Hacking | -11 -10 -10 --------- Run | Yrd Mat Min Machines Accessed 7 | . 7 . Terminals 5 | . 5 . Fabricators . | . . . Repair Stations . | . . . Recycling Units 2 | . 2 . Scanalyzers . | . . . Garrison Access . | . . . Total Hacks 20 | . 20 . Successful 15 | . 15 . Failed 5 | . 5 . Catastrophic . | . . . Database Lockouts . | . . . Manual 15 | . 15 . Terminals 18 | . 18 . Fabricators . | . . . Repair Stations . | . . . Recycling Units 2 | . 2 . Scanalyzers . | . . . Garrison Access . | . . . Terminal Hacks 6 | . 6 . Robot Analysis 1 | . 1 . Prototype ID Bank 3 | . 3 . Unreport Threat 1 | . 1 . Locate Traps 1 | . 1 . Fabricator Hacks . | . . . Repair Station Hacks . | . . . Recycling Unit Hacks . | . . . Scanalyzer . | . . . Garrison Access Hacks . | . . . Unauthorized Hacks 9 | . 9 . Terminals 8 | . 8 . Botnet 3 | . 3 . Skim 5 | . 5 . Fabricators . | . . . Repair Stations . | . . . Recycling Units 1 | . 1 . Tunnel 1 | . 1 . Scanalyzers . | . . . Garrison Access . | . . . Data Cores Recovered . | . . . Used . | . . . Hacking Detections 6 | . 6 . Full Trace Events . | . . . Feedback Events . | . . . Feedback Blocked . | . . . Robot Schematics Acquired . | . . . Robots Built . | . . . Authchips . | . . . Time . | . . . Total Robot Build Rating . | . . . Part Schematics Acquired . | . . . Parts Built . | . . . Authchips . | . . . Time . | . . . Total Part Build Rating . | . . . Part Studies Acquired . | . . . Parts Repaired . | . . . Time . | . . . Parts Recycled . | . . . Recycled Matter . | . . . Retrieved Matter . | . . . Retrieved Components . | . . . Parts Scanalyzed . | . . . Part Schematics Acquired . | . . . Parts Damaged . | . . . Bothacking | -11 -10 -10 ------------ Run | Yrd Mat Min Used RIF Installer . | . . . Robots Hacked . | . . . Non-combat . | . . . Combat . | . . . Robot Hacks Applied . | . . . Relay Couplers Released . | . . . Fabnet Peak Effective % . | . . . Robots Rewired . | . . . Allies Hacked . | . . . Hacks Repelled . | . . . Allies | -11 -10 -10 -------- Run | Yrd Mat Min Total Allies . | . . . Largest Group . | . . . Highest-Rated Group . | . . . Highest-Rated Ally . | . . . Total Orders . | . . . Ally Attacks . | . . . Total Damage . | . . . Kills . | . . . Allies Corrupted . | . . . Allies Melted . | . . . Intel | -11 -10 -10 ------- Run | Yrd Mat Min Active Infowar (turns) 134 | 6 128 . Seismic 134 | 6 128 . Robot Analysis Total 1 | . 1 . Derelict Logs Recovered . | . . . Drone Launches . | . . . Drone Recoveries . | . . . Exploration | -11 -10 -10 ------------- Run | Yrd Mat Min Turns Passed 1863 | 286 1487 90 Spaces Moved 680 | 141 492 47 Core 10 | 3 . 7 Treads 670 | 138 492 40 Legs . | . . . Wheels . | . . . Hover . | . . . Flight . | . . . Fastest Speed 50 | 50 160 100 Average Speed 158 | 157 160 152 Slowest Speed 160 | 160 160 160 Overloaded Moves . | . . . Propulsion Burnouts . | . . . Robots Hopped . | . . . Potential Cave-ins . | . . . Cave-ins Triggered . | . . . Exploration Rate (%) 34 | 7 82 15 Regions Visited 2 Branch Regions 1 Pre-discovered Areas 2 | . 2 . Known Exits Taken . | . . . Unknown Exits Taken 2 | 1 1 . Scrap Searched . | . . . Spaces Dug . | . . . Terrain Destroyed . | . . . Melee . | . . . Projectile . | . . . AOE . | . . . Terrain Rammed . | . . . Walls Destroyed . | . . . Machines Disabled . | . . . Actions | -11 -10 -10 --------- Run | Yrd Mat Min Total 1332 | 174 1100 58 Wait 532 | 3 528 1 Move 678 | 140 491 47 Hop . | . . . Pick Up 15 | 7 7 1 Fast Attach 8 | 7 1 . Attach 1 | . . 1 Detach 1 | . . 1 Swap 8 | . 7 1 Drop 13 | . 11 2 Fire 76 | 17 55 4 Melee . | . . . Ram . | . . . Kick . | . . . Crush . | . . . Escape Stasis . | . . . Rewire . | . . . Trap . | . . . Miscellaneous . | . . . Route ------- -11/Scrapyard -10/Materials (discovered 6 exits: *Mat x3 / [*Min x2] / Sub) -10/Mines (discovered 2 exits: *Mat / Sub) History --------- Turn | Location | Event 8 | -11/Scrapyard | Discovered new exit (range 16) 287 | -11/Scrapyard | Entered Materials 302 | -10/Materials | Build established: Mutant 503 | -10/Materials | Discovered new exit (range 7) 680 | -10/Materials | Discovered new exit (range 15) 1170 | -10/Materials | Build established: Scavenger-Mutant 1194 | -10/Materials | Discovered new exit (range 15) 1248 | -10/Materials | Discovered new exit (range 6) 1362 | -10/Materials | Loaded intel: 2 recycling unit locations 1431 | -10/Materials | Learned Storage emergency access door positions 1541 | -10/Materials | Learned location of Storage (-9) 1579 | -10/Materials | Learned Storage trap positions 1605 | -10/Materials | Identified exit to Materials 1605 | -10/Materials | Identified exit to Subcaves 1647 | -10/Materials | Learned Storage non-interactive machine intel 1734 | -10/Materials | Learned location of 2 exits from Subcaves 1774 | -10/Materials | Entered Mines 1799 | -10/Mines | Met a Derelict bent on vengeance 1820 | -10/Mines | Discovered exit to Materials (range 10) 1828 | -10/Mines | Found a hidden stash of uninstalled traps 1837 | -10/Mines | Assembled infested the area 1854 | -10/Mines | Core integrity fell below 50% 1861 | -10/Mines | Core integrity fell below 20% 1864 | -10/Mines | Destroyed by D-53 Grenadier with Mini Grenade Launcher Last Messages --------------- 01778_ Lgt. Treads destroyed. 01780_ S-10 Pest destroyed. 01780_ Switching to secondary target: S-10 Pest. 01783_ Lgt. Ion Engine melted. 01783_ S-10 Pest destroyed. 01789_ Dropped Lgt. Nuclear Core. 01793_ Acquired Lgt. Ion Engine. 01795_ Acquired 15 matter. 01797_ Acquired 6 matter. 01820_ EXIT=FOUND: MATERIALS 01828_ A stash of uninstalled traps is collected here! 01837_ ALERT: Infestation in the mines, dispatching Demolisher response squad. 01849_ C-45 Heavy ARC bursts open, deploying its payload. 01849_ D-53 Grenadier unfolds itself. 01851_ Lgt. Treads destroyed. 01856_ Dropped Med. Laser. 01857_ Lgt. Ion Engine destroyed. 01858_ K-01 Serf collects debris. 01862_ U-05 Engineer lays Concrete. Map ----- +----------------------------------------------------+ | ?????????????????????????????????????????????????? | | ?????????????????????????????????????????????????? | | ?????????????????????????????????????????????????? | | ?????????????????? ?????????????????????????????? | | ????????????????## ?????????????????????????????? | | ???????????????## ?????????????????????????????? | | ???????????????# #????????????????????????????? | | ???????????????? ##???????????????????????????? | | ???????????????? #???????????????????????????? | | ????????????????# #???????????????????????????? | | ???????????????## ##??????????????????????????? | | ???????????????# #??????????????????????????? | | ????????#?????## ##?????????????????????????? | | ???????## ##### #?????????????????????????? | | ?????? ##???####?????????????????? | | ????????? ##?# ##????????????????? | | ????????????# ## #????????????????? | | ?????????????# ###??????????????? | | ?????????????## ????????????? | | ??????????#### #???????????????????? | | ????#######" # d ##???????????????????? | | ????# "%& #????????????????????? | | ????# ## ##" #????????????????????? | | ##??# ## #### ##????????????????????? | | =##?# ## #??# # #????????????????????? | | % ### ## #??# ######@ ##????????????????????? | | = ## #??#### # #????# ##?????????????????????? | | [ ###### #?????#####????# ??????????????????????? | | ###???? #??????????????###??????????????????????? | | #?????? ???????????????????????????????????????? | | ??????? ???????????????????????????????????????? | | ??????? < ???????????????????????????????????????? | | ??????? ???????????????????????????????????????? | | ??????? ???????????????????????????????????????? | | ??????? ???????????????????????????????????????? | | ??????? ???????????????????????????????????????? | | ??????? ???????????????????????????????????????? | | ?????????????????????????????????????????????????? | | ?????????????????????????????????????????????????? | | ?????????????????????????????????????????????????? | | ?????????????????????????????????????????????????? | | ?????????????????????????????????????????????????? | | ?????????????????????????????????????????????????? | | ?????????????????????????????????????????????????? | | ?????????????????????????????????????????????????? | | ?????????????????????????????????????????????????? | | ?????????????????????????????????????????????????? | | ?????????????????????????????????????????????????? | | ?????????????????????????????????????????????????? | | ?????????????????????????????????????????????????? | +----------------------------------------------------+ Best States ------------- Heat Dissipation 39 Energy Generation 14 Energy Capacity 160 Matter Stores 300 Matter Capacity 300 Sight Range 16 Terrain Scan Density 10 Evasion (%) 40 Recoil Reduction 2 Item Schematics ----------------- None Robot Schematics ------------------ None Fabricated ------------ Nothing Repaired ---------- Nothing Studied --------- None Alien Tech Used ----------------- None Achievements -------------- None Challenges ------------ None Game ------ Seed ClaymoresLongswordAmplifier Manual? 0 Play Time 00:12:46 Cumulative 28.8 hours Start 2026.02.20 @ 18:49:28 End 2026.02.20 @ 19:01:47 Sessions 1 Manual Loads 0 Difficulty Rogue Special Mode None Game No. 26 Rogue 26 Adventurer 0 Explorer 0 Win Type - Total 1 Types 1/0/0/0/0/0/0/0/0/0 Lore% 30 Gallery% 29 Achievement% 29 Wizard Run 0 Options --------- Layout 0 ASCII 1 Keyboard 1 Movement Numpad Keybinds 0 Fullscreen 1 Font 24/Cog Map View 76x50 Zoom Use 0% Tactical HUD 1 Map Filters NONE Filters NONE Steam 1 RUN: 7824d537-4520-454d-a7e4-38e0a898d0e3